fUSD/lending_fUSD_20250916
["ID","MTS","AMOUNT","RATE_DAILY","PERIOD"]
[385861645,1758065452249,-4609.0,0.00028134,2]
[385861646,1758065452258,-600.0,0.00028138,2]
[385861647,1758065452267,-151.0,0.00028206,2]
[385861648,1758065452276,-151.0,0.00028206,2]
[385861649,1758065452286,-151.0,0.00028206,2]
[385861650,1758065452296,-151.0,0.00028206,2]
[385861651,1758065452305,-162.63,0.00028392,2]
[385861652,1758065452314,-37311.16,0.000284,7]
[385861653,1758065452323,-2431.89756366,0.000284,2]
[385861654,1758065452333,-1024.44975094,0.0002846,2]
[385861655,1758065452343,-1341.90126392,0.0002846,2]
[385861656,1758065452352,-357.45048253,0.0002846,2]
[385861657,1758065452361,-506.35500661,0.00028466,2]
[385861658,1758065452371,-359.76179104,0.00028477,2]
[385861659,1758065452380,-277.35679052,0.00028477,2]
[385861660,1758065452389,-160.0,0.00028477,2]
[385861661,1758065452398,-350.0,0.00028493,5]
[385861662,1758065452407,-1160.16749892,0.00028493,5]
[385861663,1758065452417,-1021.09,0.000286,30]
[385861664,1758065452428,-600.0,0.00028686,2]
[385861665,1758065452439,-151.0,0.00028754,2]
[385861666,1758065452450,-151.0,0.00028754,2]
[385861667,1758065452460,-151.0,0.00028754,2]
[385861668,1758065452469,-151.0,0.00028754,2]
[385861669,1758065452478,-12469.69237752,0.0002876,2]
[385861670,1758065452487,-151.0,0.0002876,7]
[385861671,1758065452497,-164.820085,0.0002876,7]
[385861672,1758065452508,-151.0,0.0002876,7]
[385861673,1758065452517,-151.0,0.0002876,7]
[385861674,1758065452528,-151.0,0.0002876,7]
[385861675,1758065452538,-421.952722,0.0002876,7]
[385861676,1758065452547,-151.0,0.0002876,7]
[385861677,1758065452556,-421.952722,0.0002876,7]
[385861678,1758065452566,-421.952722,0.0002876,7]
[385861679,1758065452575,-198.753053,0.0002876,7]
[385861680,1758065452584,-151.0,0.0002876,7]
[385861681,1758065452593,-308.858037,0.0002876,7]
[385861682,1758065452602,-421.952722,0.0002876,7]
[385861683,1758065452611,-151.0,0.0002876,7]
[385861684,1758065452621,-151.111385,0.0002876,7]
[385861685,1758065452631,-308.858037,0.0002876,7]
[385861686,1758065452641,-308.858037,0.0002876,7]
[385861687,1758065452651,-935.537838,0.0002876,7]
[385861688,1758065452662,-151.0,0.0002876,7]
[385861689,1758065452672,-308.858037,0.0002876,7]
[385861690,1758065452681,-151.0,0.0002876,7]
[385861691,1758065452690,-935.537838,0.0002876,7]
[385861692,1758065452699,-151.0,0.0002876,7]
[385861693,1758065452710,-151.0,0.0002876,7]
[385861694,1758065452719,-935.537838,0.0002876,7]
[385861695,1758065452728,-151.0,0.0002876,7]
[385861696,1758065452737,-151.0,0.0002876,7]
[385861697,1758065452746,-935.537838,0.0002876,7]
[385861698,1758065452756,-151.0,0.0002876,7]
[385861699,1758065452765,-151.0,0.0002876,7]
[385861700,1758065452774,-151.0,0.0002876,7]
[385861701,1758065452784,-151.0,0.0002876,7]
[385861702,1758065452794,-151.0,0.0002876,7]
[385861703,1758065452803,-151.0,0.0002876,7]
[385861704,1758065452813,-151.0,0.0002876,7]
[385861705,1758065452822,-151.0,0.0002876,7]
[385861706,1758065452832,-287.274067,0.0002876,7]
[385861707,1758065452841,-151.0,0.0002876,7]
[385861708,1758065452850,-287.274067,0.0002876,7]
[385861709,1758065452859,-151.0,0.0002876,7]
[385861710,1758065452869,-287.274067,0.0002876,7]
[385861711,1758065452878,-287.274067,0.0002876,7]
[385861712,1758065452887,-151.0,0.0002876,7]
[385861713,1758065452896,-151.0,0.0002876,7]
[385861714,1758065452905,-150.0,0.00028767,2]
[385861715,1758065452915,-2000.0,0.00028767,2]
[385861716,1758065452924,-2000.0,0.00028767,2]
[385861717,1758065452933,-2000.0,0.00028767,2]
[385861718,1758065452942,-2000.0,0.00028767,2]
[385861719,1758065452951,-2000.0,0.00028767,2]
[385861720,1758065452960,-2000.0,0.00028767,2]
[385861721,1758065452969,-2000.0,0.00028767,2]
[385861722,1758065452979,-2000.0,0.00028767,2]
[385861723,1758065452988,-2000.0,0.00028767,2]
[385861724,1758065452998,-2000.0,0.00028767,2]
[385861725,1758065453007,-2000.0,0.00028767,2]
[385861726,1758065453017,-150.0,0.00029,5]
[385861727,1758065453026,-161.90209112,0.00029021,2]
[385861728,1758065453035,-253.22068983,0.00029041,5]
[385861729,1758065453045,-1124.09652417,0.00029041,5]
[385861730,1758065453054,-470.91,0.00029183,30]
[385861731,1758065453063,-188.96,0.00029183,30]
[385861732,1758065453072,-639.77374121,0.00029234,2]
[385861733,1758065453081,-280.43338726,0.00029302,2]
[385861734,1758065453091,-151.0,0.00029302,2]
[385861735,1758065453100,-210.6906711,0.00029302,2]
[385861736,1758065453109,-151.0,0.00029302,2]
[385861737,1758065453118,-515.055,0.00029315,12]
[385861738,1758065453128,-218.39609816,0.00029367,15]
[385861739,1758065453137,-5629.39792637,0.0002941,2]
[385861740,1758065453147,-299999.99999901,0.0002941,15]
[385861741,1758065453156,-162.827325,0.0002941,7]
[385861742,1758065453166,-155.856121,0.0002941,7]
[385861743,1758065453175,-151.0,0.0002941,7]
[385861744,1758065453184,-231.410212,0.0002941,7]
[385861745,1758065453193,-231.410212,0.0002941,7]
[385861746,1758065453202,-231.410212,0.0002941,7]
[385861747,1758065453334,-231.410212,0.0002941,7]
[385861748,1758065453344,-151.0,0.0002941,7]
[385861749,1758065453353,-154.104821,0.0002941,7]
[385861750,1758065453362,-151.0,0.0002941,7]
[385861751,1758065453371,-151.0,0.0002941,7]
[385861752,1758065453380,-151.0,0.0002941,7]
[385861753,1758065453390,-151.0,0.0002941,7]
[385861754,1758065453399,-151.0,0.0002941,7]
[385861755,1758065453408,-152.80332,0.0002941,7]
[385861756,1758065453418,-152.867409,0.0002941,7]
[385861757,1758065453427,-151.0,0.0002941,7]
[385861758,1758065453436,-299.820962,0.0002941,7]
[385861759,1758065453446,-154.734567,0.0002941,7]
[385861760,1758065453455,-151.0,0.0002941,7]
[385861761,1758065453465,-255.41484,0.0002941,7]
[385861762,1758065453475,-250.0,0.00029548,5]
[385861763,1758065453484,-300.0,0.00029824,2]
[385861764,1758065453493,-373.07297731,0.00029846,2]
[385861765,1758065453503,-287.61899177,0.00029846,2]
[385861766,1758065453512,-695.39793187,0.00029848,2]
[385861767,1758065453522,-162.380719,0.00029848,2]
[385861768,1758065453532,-151.0,0.0002985,2]
[385861769,1758065453542,-151.0,0.0002985,2]
[385861770,1758065453551,-1000.0,0.0002989,2]
[385861771,1758065453560,-150.0,0.00029906,2]
[385861772,1758065453570,-166758.43969,0.0003,2]
[385861773,1758065453579,-37311.16,0.0003,7]
[385861774,1758065453588,-44996.80012804,0.0003,2]
[385861775,1758065453597,-559.50349588,0.0003,4]
[385861776,1758065453607,-4000.0,0.0003,4]
[385861777,1758065453616,-150.0,0.00030022,2]
[385861778,1758065453626,-1260.0,0.00030026,2]
[385861779,1758065453636,-5569.36168375,0.0003003,2]
[385861780,1758065453646,-350.78272431,0.00030096,5]
[385861781,1758065453657,-978.21,0.000301,2]
[385861782,1758065453667,-14639.96515078,0.0003013,2]
[385861783,1758065453676,-2162.22028176,0.0003013,5]
[385861784,1758065453685,-1183.37348857,0.0003013,5]
[385861785,1758065453695,-175104.37819145,0.0003013,4]
[385861786,1758065453705,-499.999999,0.0003013,2]
[385861787,1758065453714,-151.0,0.0003013,7]
[385861788,1758065453723,-151.0,0.0003013,7]
[385861789,1758065453735,-151.0,0.0003013,7]
[385861790,1758065453744,-151.0,0.0003013,7]
[385861791,1758065453754,-151.0,0.0003013,7]
[385861792,1758065453764,-151.0,0.0003013,7]
[385861793,1758065453773,-151.0,0.0003013,7]
[385861794,1758065453783,-151.0,0.0003013,7]
[385861795,1758065453793,-151.0,0.0003013,7]
[385861796,1758065453803,-151.0,0.0003013,7]
[385861797,1758065453813,-151.0,0.0003013,7]
[385861798,1758065453823,-151.0,0.0003013,7]
[385861799,1758065453832,-152.066691,0.0003013,7]
[385861800,1758065453841,-151.0,0.0003013,7]
[385861801,1758065453850,-152.629262,0.0003013,7]
[385861802,1758065453859,-151.0,0.0003013,7]
[385861803,1758065453868,-151.0,0.0003013,7]
[385861804,1758065453878,-151.0,0.0003013,7]
[385861805,1758065453888,-151.0,0.0003013,7]
[385861806,1758065453898,-152.737189,0.0003013,7]
[385861807,1758065453909,-151.0,0.0003013,7]
[385861808,1758065453919,-151.0,0.0003013,7]
[385861809,1758065453930,-50670.23382749,0.0003013,4]
[385861810,1758065453941,-151.0,0.0003013,7]
[385861811,1758065453950,-195.648563,0.0003013,7]
[385861812,1758065453960,-151.0,0.0003013,7]
[385861813,1758065453969,-151.0,0.0003013,7]
[385861814,1758065453979,-151.0,0.0003013,7]
[385861815,1758065453989,-157.600727,0.0003013,7]
[385861816,1758065453998,-151.0,0.0003013,7]
[385861817,1758065454007,-151.0,0.0003013,7]
[385861818,1758065454016,-151.0,0.0003013,7]
[385861819,1758065454026,-151.0,0.0003013,7]
[385861820,1758065454035,-151.0,0.0003013,7]
[385861821,1758065454044,-151.0,0.0003013,7]
[385861822,1758065454053,-151.0,0.0003013,7]
[385861823,1758065454062,-151.0,0.0003013,7]
[385861824,1758065454072,-151.0,0.0003013,7]
[385861825,1758065454081,-173.809067,0.0003013,7]
[385861826,1758065454090,-173.809067,0.0003013,7]
[385861827,1758065454099,-173.809067,0.0003013,7]
[385861828,1758065454108,-173.809067,0.0003013,7]
[385861829,1758065454117,-151.0,0.0003013,7]
[385861830,1758065454127,-151.0,0.0003013,7]
[385861831,1758065454136,-151.0,0.0003013,7]
[385861832,1758065454145,-151.0,0.0003013,7]
[385861833,1758065454154,-151.0,0.0003013,7]
[385861834,1758065454163,-151.0,0.0003013,7]
[385861835,1758065454181,-151.0,0.0003013,7]
[385861836,1758065454199,-997.0,0.00030134,2]
[385861837,1758065454219,-114828.95955124,0.00030135,2]
[385861838,1758065454241,-150.0,0.00030136,2]
[385861839,1758065454257,-292.21,0.00030137,2]
[385861840,1758065454275,-200.0,0.00030137,2]
[385861841,1758065454296,-200.0,0.00030137,2]
[385861842,1758065454315,-488.84131441,0.00030137,30]
[385861843,1758065454333,-850.17789388,0.00030137,14]
[385861844,1758065454353,-151.0,0.00030137,14]
[385861845,1758065454370,-176.96836635,0.00030172,2]
[385861846,1758065454385,-470.91,0.00030324,30]
[385861847,1758065454401,-188.96,0.00030324,30]
[385861848,1758065454416,-702.01824763,0.0003037,2]
[385861849,1758065454432,-151.0,0.00030398,2]
[385861850,1758065454447,-209.33659526,0.00030398,2]
[385861851,1758065454462,-43710.60592143,0.00030408,2]
[385861852,1758065454477,-500.0,0.00030411,7]
[385861853,1758065454493,-500.0,0.00030411,7]
[385861854,1758065454508,-500.0,0.00030411,7]
[385861855,1758065454523,-500.0,0.00030411,7]
[385861856,1758065454539,-500.0,0.00030411,7]
[385861857,1758065454554,-500.0,0.00030411,7]
[385861858,1758065454570,-500.0,0.00030411,7]
[385861859,1758065454584,-500.0,0.00030411,7]
[385861860,1758065454600,-500.0,0.00030411,7]
[385861861,1758065454616,-500.0,0.00030411,7]
[385861862,1758065454630,-500.0,0.00030411,7]
[385861863,1758065454646,-500.0,0.00030411,7]
[385861864,1758065454662,-500.0,0.00030411,7]
[385861865,1758065454680,-500.0,0.00030411,7]
[385861866,1758065454694,-500.0,0.00030411,7]
[385861867,1758065454709,-500.0,0.00030411,7]
[385861868,1758065454724,-500.0,0.00030411,7]
[385861869,1758065454740,-500.0,0.00030411,7]
[385861870,1758065454755,-500.0,0.00030411,7]
[385861871,1758065454770,-500.0,0.00030411,7]
[385861872,1758065454785,-500.0,0.00030411,7]
[385861873,1758065454801,-500.0,0.00030411,7]
[385861874,1758065454816,-500.0,0.00030411,7]
[385861875,1758065454831,-500.0,0.00030411,7]
[385861876,1758065454847,-980.83723474,0.00030411,7]
[385861877,1758065454863,-1811.018,0.00030413,26]
[385861878,1758065454877,-161.827,0.00030413,26]
[385861879,1758065454893,-200.0,0.00030438,2]
[385861880,1758065454908,-1434.0,0.000305,2]
[385861881,1758065454923,-500.0,0.00030532,120]
[385861882,1758065454938,-700.0,0.0003057,2]
[385861883,1758065454954,-700.0,0.0003057,2]
[385861884,1758065454969,-605.81796168,0.0003057,2]
[385861885,1758065454984,-845090.85237811,0.0003058,7]
[385861886,1758065454999,-151.0,0.0003058,7]
[385861887,1758065455014,-153.75398,0.0003058,7]
[385861888,1758065455029,-152.922855,0.0003058,7]
[385861889,1758065455044,-151.0,0.0003058,7]
[385861890,1758065455059,-151.0,0.0003058,7]
[385861891,1758065455074,-151.0,0.0003058,7]
[385861892,1758065455090,-151.0,0.0003058,7]
[385861893,1758065455105,-151.0,0.0003058,7]
[385861894,1758065455120,-151.0,0.0003058,7]
[385861895,1758065455135,-151.0,0.0003058,7]
[385861896,1758065455150,-151.0,0.0003058,7]
[385861897,1758065455165,-151.004966,0.0003058,7]
[385861898,1758065455181,-151.0,0.0003058,7]
[385861899,1758065455196,-151.0,0.0003058,7]
[385861900,1758065455219,-151.0,0.0003058,7]
[385861901,1758065455242,-151.0,0.0003058,7]
[385861902,1758065455259,-195.905487,0.0003058,7]
[385861903,1758065455273,-151.0,0.0003058,7]
[385861904,1758065455290,-151.0,0.0003058,7]
[385861905,1758065455305,-156.846785,0.0003058,7]
[385861906,1758065455323,-151.0,0.0003058,7]
[385861907,1758065455339,-151.0,0.0003058,7]
[385861908,1758065455354,-269.08738,0.0003058,7]
[385861909,1758065455369,-151.0,0.0003058,7]
[385861910,1758065455385,-151.0,0.0003058,7]
[385861911,1758065455400,-151.0,0.0003058,7]
[385861912,1758065455415,-151.0,0.0003058,7]
[385861913,1758065455430,-151.0,0.0003058,7]
[385861914,1758065455445,-151.32254,0.0003058,7]
[385861915,1758065455460,-153.537648,0.0003058,7]
[385861916,1758065455475,-151.0,0.0003058,7]
[385861917,1758065455490,-151.0,0.0003058,7]
[385861918,1758065455506,-151.0,0.0003058,7]
[385861919,1758065455523,-151.0,0.0003058,7]
[385861920,1758065455703,-151.0,0.0003058,7]
[385861921,1758065455714,-156.690252,0.0003058,7]
[385861922,1758065455724,-196.94905,0.0003058,7]
[385861923,1758065455736,-151.0,0.0003058,7]
[385861924,1758065455745,-158.043913,0.0003058,7]
[385861925,1758065455754,-151.0,0.0003058,7]
[385861926,1758065455763,-151.928168,0.0003058,7]
[385861927,1758065455773,-151.0,0.0003058,7]
[385861928,1758065455783,-160.0,0.0003058,14]
[385861929,1758065455793,-57613.693941,0.0003058,7]
[385861930,1758065455802,-151.0,0.0003058,7]
[385861931,1758065455811,-231.410212,0.0003058,7]
[385861932,1758065455820,-231.410212,0.0003058,7]
[385861933,1758065455829,-231.410212,0.0003058,7]
[385861934,1758065455838,-231.410212,0.0003058,7]
[385861935,1758065455847,-151.0,0.0003058,7]
[385861936,1758065455857,-151.0,0.0003058,7]
[385861937,1758065455867,-151.0,0.0003058,7]
[385861938,1758065455877,-153.974348,0.0003058,7]
[385861939,1758065455886,-851.889654,0.0003058,7]
[385861940,1758065455895,-151.0,0.0003058,7]
[385861941,1758065455904,-151.0,0.0003058,7]
[385861942,1758065455913,-151.0,0.0003058,7]
[385861943,1758065455923,-421.952722,0.0003058,7]
[385861944,1758065455934,-151.0,0.0003058,7]
[385861945,1758065455944,-421.952722,0.0003058,7]
[385861946,1758065455953,-421.952722,0.0003058,7]
[385861947,1758065455962,-151.0,0.0003058,7]
[385861948,1758065455972,-308.858037,0.0003058,7]
[385861949,1758065455981,-421.952722,0.0003058,7]
[385861950,1758065455990,-151.0,0.0003058,7]
[385861951,1758065456000,-308.858037,0.0003058,7]
[385861952,1758065456009,-308.858037,0.0003058,7]
[385861953,1758065456018,-935.537838,0.0003058,7]
[385861954,1758065456029,-308.858037,0.0003058,7]
[385861955,1758065456039,-935.537838,0.0003058,7]
[385861956,1758065456049,-151.0,0.0003058,7]
[385861957,1758065456058,-151.0,0.0003058,7]
[385861958,1758065456068,-151.0,0.0003058,7]
[385861959,1758065456078,-935.537838,0.0003058,7]
[385861960,1758065456087,-151.0,0.0003058,7]
[385861961,1758065456096,-935.537838,0.0003058,7]
[385861962,1758065456106,-151.0,0.0003058,7]
[385861963,1758065456115,-151.0,0.0003058,7]
[385861964,1758065456125,-151.0,0.0003058,7]
[385861965,1758065456135,-151.0,0.0003058,7]
[385861966,1758065456144,-151.0,0.0003058,7]
[385861967,1758065456154,-151.0,0.0003058,7]
[385861968,1758065456163,-151.0,0.0003058,7]
[385861969,1758065456172,-151.0,0.0003058,7]
[385861970,1758065456181,-287.274067,0.0003058,7]
[385861971,1758065456190,-151.0,0.0003058,7]
[385861972,1758065456200,-287.274067,0.0003058,7]
[385861973,1758065456208,-151.0,0.0003058,7]
[385861974,1758065456218,-287.274067,0.0003058,7]
[385861975,1758065456228,-287.274067,0.0003058,7]
[385861976,1758065456238,-151.0,0.0003058,7]
[385861977,1758065456248,-155.323381,0.0003058,7]
[385861978,1758065456257,-700.0,0.0003067,2]
[385861979,1758065456267,-700.0,0.0003067,2]
[385861980,1758065456276,-500.0,0.00030684,11]
[385861981,1758065456287,-500.0,0.00030684,11]
[385861982,1758065456299,-500.0,0.00030684,11]
[385861983,1758065456308,-500.0,0.00030684,11]
[385861984,1758065456318,-500.0,0.00030684,11]
[385861985,1758065456327,-500.0,0.00030684,11]
[385861986,1758065456337,-500.0,0.00030684,11]
[385861987,1758065456346,-500.0,0.00030684,11]
[385861988,1758065456355,-500.0,0.00030684,11]
[385861989,1758065456366,-500.0,0.00030684,11]
[385861990,1758065456376,-500.0,0.00030684,11]
[385861991,1758065456386,-500.0,0.00030684,11]
[385861992,1758065456395,-500.0,0.00030684,11]
[385861993,1758065456406,-500.0,0.00030684,11]
[385861994,1758065456415,-500.0,0.00030684,11]
[385861995,1758065456425,-500.0,0.00030684,11]
[385861996,1758065456434,-500.0,0.00030684,11]
[385861997,1758065456443,-389.00242953,0.00030684,11]
[385861998,1758065456454,-571.43,0.00030685,30]
[385861999,1758065456463,-166.90535487,0.00030738,2]
[385862000,1758065456472,-200.0,0.00030743,2]
[385862001,1758065456483,-6453.0,0.00030796,2]
[385862002,1758065456494,-1524.40124657,0.00030888,60]
[385862003,1758065456503,-156.11368437,0.000309,2]
[385862004,1758065456513,-156.11368437,0.000309,2]
[385862005,1758065456522,-156.11368437,0.000309,2]
[385862006,1758065456531,-156.11368437,0.000309,2]
[385862007,1758065456540,-156.11368437,0.000309,2]
[385862008,1758065456550,-156.11368437,0.000309,2]
[385862009,1758065456560,-156.11368437,0.000309,2]
[385862010,1758065456569,-156.11368437,0.000309,2]
[385862011,1758065456579,-156.11368437,0.000309,2]
[385862012,1758065456588,-156.11368437,0.000309,2]
[385862013,1758065456598,-156.11368437,0.000309,2]
[385862014,1758065456607,-151.0,0.00030946,2]
[385862015,1758065456616,-334.99643096,0.00031,5]
[385862016,1758065456626,-154.0,0.00031,120]
[385862017,1758065456636,-155.0,0.00031,120]
[385862018,1758065456646,-24631.57621272,0.00031,120]
[385862019,1758065456659,-160.0,0.00031,120]
[385862020,1758065456669,-160.0,0.00031,120]
[385862021,1758065456679,-200.0,0.0003105,2]
[385862022,1758065456690,-303.60585149,0.0003108,20]
[385862023,1758065456700,-1303.0,0.00031206,2]
[385862024,1758065456709,-1580.0,0.00031206,2]
[385862025,1758065456718,-602.0,0.00031206,2]
[385862026,1758065456729,-568.0,0.00031206,2]
[385862027,1758065456739,-813.0,0.00031206,2]
[385862028,1758065456748,-898.0,0.00031206,2]
[385862029,1758065456758,-1191.822,0.00031206,2]
[385862030,1758065456768,-4225.0,0.00031206,2]
[385862031,1758065456778,-755.0,0.00031206,2]
[385862032,1758065456787,-3390.0,0.00031206,2]
[385862033,1758065456796,-4171.0,0.00031206,2]
[385862034,1758065456806,-386.87667747,0.00031215,2]
[385862035,1758065456816,-298.26089446,0.00031215,2]
[385862036,1758065456826,-218.39609816,0.0003128,15]
[385862037,1758065456835,-161.90209112,0.00031302,2]
[385862038,1758065456844,-506.35500661,0.00031321,2]
[385862039,1758065456854,-200.0,0.00031361,2]
[385862040,1758065456863,-3500.53399578,0.000314,30]
[385862041,1758065456872,-470.91,0.00031466,30]
[385862042,1758065456883,-188.96,0.00031466,30]
[385862043,1758065456892,-151.0,0.00031494,2]
[385862044,1758065456901,-150.0,0.00031506,2]
[385862045,1758065456910,-420.5,0.00031577,30]
[385862046,1758065456919,-37311.16,0.000316,7]
[385862047,1758065456929,-4000.0,0.00032,4]
[385862048,1758065456940,-151.0,0.00032042,2]
[385862049,1758065456949,-686.74,0.00032054,17]
[385862050,1758065456958,-500.0,0.00032143,120]
[385862051,1758065456968,-150.185,0.00032219,2]
[385862052,1758065456979,-197.811,0.00032219,2]
[385862053,1758065456988,-150.0,0.00032219,2]
[385862054,1758065456997,-219.515,0.00032219,2]
[385862055,1758065457007,-291.651,0.00032219,2]
[385862056,1758065457016,-150.0,0.00032219,2]
[385862057,1758065457024,-150.181,0.00032219,2]
[385862058,1758065457033,-151.0,0.00032232,7]
[385862059,1758065457043,-9096.2,0.00032232,15]
[385862060,1758065457052,-3118.62,0.00032232,2]
[385862061,1758065457061,-417.24,0.00032232,15]
[385862062,1758065457070,-9999.99,0.00032232,2]
[385862063,1758065457079,-499.99,0.00032232,2]
[385862064,1758065457090,-504.0,0.00032232,30]
[385862065,1758065457099,-150.99,0.00032232,2]
[385862066,1758065457110,-2917.97,0.00032232,2]
[385862067,1758065457119,-9999.99,0.00032232,2]
[385862068,1758065457128,-1157.68,0.00032232,2]
[385862069,1758065457137,-285.69,0.00032232,30]
[385862070,1758065457147,-999.99,0.00032232,2]
[385862071,1758065457156,-83593.4,0.00032232,2]
[385862072,1758065457165,-3748.07,0.00032232,2]
[385862073,1758065457174,-9999.99,0.00032232,2]
[385862074,1758065457184,-9999.99,0.00032232,2]
[385862075,1758065457193,-1439.39,0.00032232,2]
[385862076,1758065457204,-9999.99,0.00032232,2]
[385862077,1758065457214,-3515.5,0.00032232,2]
[385862078,1758065457223,-160.40177069,0.0003253,6]
[385862079,1758065457234,-401.19111454,0.00032584,2]
[385862080,1758065457243,-309.29654756,0.00032584,2]
[385862081,1758065457252,-721.12765535,0.00032587,2]
[385862082,1758065457261,-168.3888056,0.00032587,2]
[385862083,1758065457271,-151.0,0.0003259,2]
[385862084,1758065457280,-470.91,0.00032608,30]
[385862085,1758065457289,-188.96,0.00032608,30]
[385862086,1758065457298,-150.0,0.00032876,2]
[385862087,1758065457308,-292.21,0.00032877,2]
[385862088,1758065457319,-3897.62,0.000329,14]
[385862089,1758065457328,-156.0,0.00033,14]
[385862090,1758065457338,-159.0,0.00033,14]
[385862091,1758065457347,-1463.0,0.00033,2]
[385862092,1758065457357,-4630.84487913,0.00033,2]
[385862093,1758065457366,-1260.0,0.00033026,2]
[385862094,1758065457375,-169.955,0.000331,7]
[385862095,1758065457384,-150.0,0.000331,7]
[385862096,1758065457393,-150.0,0.000331,7]
[385862097,1758065457402,-151.0,0.00033138,2]
[385862098,1758065457411,-218.39609816,0.00033193,15]
[385862099,1758065457421,-700.0,0.0003327,2]
[385862100,1758065457430,-500.0,0.0003327,2]
[385862101,1758065457439,-37311.16,0.000335,14]
[385862102,1758065457448,-151.0,0.000335,7]
[385862103,1758065457458,-151.0,0.000335,7]
[385862104,1758065457469,-217.177271,0.000335,7]
[385862105,1758065457480,-151.0,0.000335,7]
[385862106,1758065457613,-151.0,0.000335,7]
[385862107,1758065457622,-151.0,0.000335,7]
[385862108,1758065457631,-151.0,0.000335,7]
[385862109,1758065457640,-151.0,0.000335,7]
[385862110,1758065457649,-151.0,0.000335,7]
[385862111,1758065457663,-151.0,0.000335,7]
[385862112,1758065457674,-260.097552,0.000335,7]
[385862113,1758065457689,-155.654142,0.000335,7]
[385862114,1758065457699,-173.809067,0.000335,7]
[385862115,1758065457708,-173.809067,0.000335,7]
[385862116,1758065457718,-173.809067,0.000335,7]
[385862117,1758065457727,-173.809067,0.000335,7]
[385862118,1758065457737,-151.0,0.000335,7]
[385862119,1758065457747,-151.0,0.000335,7]
[385862120,1758065457756,-151.0,0.000335,7]
[385862121,1758065457765,-164.884244,0.000335,7]
[385862122,1758065457776,-151.0,0.000335,7]
[385862123,1758065457786,-176.96836635,0.00033596,2]
[385862124,1758065457795,-155.0,0.000336,120]
[385862125,1758065457804,-2741.0,0.00033709,3]
[385862126,1758065457813,-470.91,0.0003375,30]
[385862127,1758065457824,-188.96,0.0003375,30]
[385862128,1758065457834,-500.0,0.00033755,120]
[385862129,1758065457843,-502.91924081,0.00033939,60]
[385862130,1758065457854,-416.03518578,0.00033953,2]
[385862131,1758065457864,-320.74051982,0.00033953,2]
[385862132,1758065457874,-15227.99574697,0.00034,2]
[385862133,1758065457883,-2623.48988961,0.00034,5]
[385862134,1758065457892,-3897.62,0.00034,14]
[385862135,1758065457902,-250.0,0.00034,120]
[385862136,1758065457911,-168.71627451,0.00034,2]
[385862137,1758065457921,-611.5527599,0.00034,5]
[385862138,1758065457931,-4000.0,0.00034,4]
[385862139,1758065457940,-150.0,0.00034087,7]
[385862140,1758065457949,-506.35500661,0.00034176,2]
[385862141,1758065457958,-1434.69209793,0.000342,2]
[385862142,1758065457967,-781.314,0.00034206,2]
[385862143,1758065457976,-601.0,0.00034206,2]
[385862144,1758065457985,-504.67,0.00034206,2]